[Event "Titled Tuesday Blitz August 22 Late 2023"]
[White "Brahami, Lamine"]
[Black "Almiron, Antonio"]
[WhiteFideId "7905637"]
[BlackFideId "3701166"]
[WhiteElo "2309"]
[BlackElo "2624"]
[Result "0-1"]
[Round "3"]
[TimeControl "180+1"]
[Date "2023.08.22"]
[WhiteClock "0:00:33"]
[BlackClock "0:00:23"]
[Board "174"]

1. d4 {[%clk 0:02:56]}  Nf6 {[%clk 0:02:59]} 2. c4 {[%clk 0:02:54]}  e6 {[%clk 0:03:00]} 3. Nf3 {[%clk 0:02:54]}  Bb4+ {[%clk 0:02:57]} 4. Nbd2 {[%clk 0:02:52]}  O-O {[%clk 0:02:55]} 5. a3 {[%clk 0:02:52]}  Be7 {[%clk 0:02:56]} 6. e4 {[%clk 0:02:49]}  d5 {[%clk 0:02:56]} 7. e5 {[%clk 0:02:49]}  Nfd7 {[%clk 0:02:53]} 8. cxd5 {[%clk 0:02:48]}  exd5 {[%clk 0:02:53]} 9. b4 {[%clk 0:02:45]}  a5 {[%clk 0:02:52]} 10. Rb1 {[%clk 0:02:45]}  axb4 {[%clk 0:02:44]} 11. axb4 {[%clk 0:02:46]}  c6 {[%clk 0:02:39]} 12. Bd3 {[%clk 0:02:44]}  Na6 {[%clk 0:02:37]} 13. Ba3 {[%clk 0:02:36]}  Nc7 {[%clk 0:02:27]} 14. Bc1 {[%clk 0:02:30]}  f6 {[%clk 0:02:19]} 15. O-O {[%clk 0:02:28]}  fxe5 {[%clk 0:02:19]} 16. dxe5 {[%clk 0:02:29]}  Ne6 {[%clk 0:02:18]} 17. Qc2 {[%clk 0:02:25]}  g6 {[%clk 0:02:06]} 18. Re1 {[%clk 0:02:15]}  Kg7 {[%clk 0:02:01]} 19. Nf1 {[%clk 0:02:13]}  Rxf3 {[%clk 0:01:59]} 20. gxf3 {[%clk 0:02:11]}  Qf8 {[%clk 0:01:59]} 21. Qe2 {[%clk 0:02:07]}  Nd4 {[%clk 0:01:57]} 22. Qe3 {[%clk 0:01:59]}  Nxf3+ {[%clk 0:01:58]} 23. Kg2 {[%clk 0:01:58]}  Nxe1+ {[%clk 0:01:58]} 24. Qxe1 {[%clk 0:01:59]}  Ra2 {[%clk 0:01:49]} 25. Bb2 {[%clk 0:01:56]}  Kg8 {[%clk 0:01:46]} 26. Ng3 {[%clk 0:01:52]}  Qf4 {[%clk 0:01:41]} 27. e6 {[%clk 0:01:48]}  Nf8 {[%clk 0:01:26]} 28. Qc3 {[%clk 0:01:42]}  Rxb2 {[%clk 0:01:21]} 29. Rxb2 {[%clk 0:01:40]}  Bxe6 {[%clk 0:01:22]} 30. b5 {[%clk 0:01:31]}  Bf6 {[%clk 0:01:16]} 31. Qb4 {[%clk 0:01:23]}  Qc1 {[%clk 0:01:05]} 32. Rc2 {[%clk 0:01:20]}  Qd1 {[%clk 0:01:00]} 33. Rd2 {[%clk 0:01:20]}  Qe1 {[%clk 0:00:53]} 34. bxc6 {[%clk 0:01:19]}  bxc6 {[%clk 0:00:54]} 35. Rb2 {[%clk 0:01:12]}  Bc3 {[%clk 0:00:51]} 36. Qb3 {[%clk 0:01:03]}  Bxb2 {[%clk 0:00:50]} 37. Qxb2 {[%clk 0:01:04]}  Qa5 {[%clk 0:00:41]} 38. h4 {[%clk 0:01:03]}  Qd8 {[%clk 0:00:40]} 39. h5 {[%clk 0:01:03]}  Qg5 {[%clk 0:00:39]} 40. hxg6 {[%clk 0:01:02]}  hxg6 {[%clk 0:00:40]} 41. Qc2 {[%clk 0:01:01]}  Bd7 {[%clk 0:00:38]} 42. Qc5 {[%clk 0:00:59]}  Qf6 {[%clk 0:00:33]} 43. Ne2 {[%clk 0:00:54]}  Bg4 {[%clk 0:00:30]} 44. Nd4 {[%clk 0:00:48]}  Bd7 {[%clk 0:00:27]} 45. Nf3 {[%clk 0:00:46]}  Ne6 {[%clk 0:00:26]} 46. Qe3 {[%clk 0:00:45]}  Nf4+ {[%clk 0:00:25]} 47. Kg1 {[%clk 0:00:45]}  Nxd3 {[%clk 0:00:22]} 48. Qxd3 {[%clk 0:00:46]}  Qf5 {[%clk 0:00:21]} 49. Qe3 {[%clk 0:00:46]}  Qe4 {[%clk 0:00:21]} 50. Qc3 {[%clk 0:00:43]}  Bg4 {[%clk 0:00:20]} 51. Ne5 {[%clk 0:00:38]}  c5 {[%clk 0:00:14]} 52. Nd7 {[%clk 0:00:36]}  Bxd7 {[%clk 0:00:14]} 53. Qxc5 {[%clk 0:00:36]}  Qg4+ {[%clk 0:00:14]} 54. Kf1 {[%clk 0:00:36]}  Qe6 {[%clk 0:00:15]} 55. Qd4 {[%clk 0:00:34]}  Kf7 {[%clk 0:00:16]} 56. Qf4+ {[%clk 0:00:34]}  Qf6 {[%clk 0:00:16]} 57. Qc7 {[%clk 0:00:35]}  Qe6 {[%clk 0:00:16]} 58. Qf4+ {[%clk 0:00:35]}  Ke7 {[%clk 0:00:17]} 59. Qg5+ {[%clk 0:00:35]}  Kd6 {[%clk 0:00:17]} 60. Qg3+ {[%clk 0:00:35]}  Kc5 {[%clk 0:00:17]} 61. Qc3+ {[%clk 0:00:36]}  Kb6 {[%clk 0:00:17]} 62. Qb4+ {[%clk 0:00:36]}  Bb5+ {[%clk 0:00:18]} 63. Kg1 {[%clk 0:00:35]}  Qe4 {[%clk 0:00:18]} 64. Qd6+ {[%clk 0:00:34]}  Bc6 {[%clk 0:00:19]} 65. Qd8+ {[%clk 0:00:35]}  Kb5 {[%clk 0:00:17]} 66. Qb8+ {[%clk 0:00:35]}  Kc4 {[%clk 0:00:17]} 67. Qb2 {[%clk 0:00:35]}  d4 {[%clk 0:00:18]} 68. Qc1+ {[%clk 0:00:34]}  Kd5 {[%clk 0:00:17]} 69. Qg5+ {[%clk 0:00:35]}  Qf5 {[%clk 0:00:17]} 70. Qd8+ {[%clk 0:00:35]}  Qd7 {[%clk 0:00:17]} 71. Qa5+ {[%clk 0:00:35]}  Kd6 {[%clk 0:00:16]} 72. Qa3+ {[%clk 0:00:35]}  Kc7 {[%clk 0:00:16]} 73. Qa7+ {[%clk 0:00:35]}  Kd8 {[%clk 0:00:17]} 74. Qb8+ {[%clk 0:00:35]}  Ke7 {[%clk 0:00:18]} 75. Qe5+ {[%clk 0:00:35]}  Kf7 {[%clk 0:00:19]} 76. Qf4+ {[%clk 0:00:35]}  Kg7 {[%clk 0:00:20]} 77. Qe5+ {[%clk 0:00:35]}  Kh7 {[%clk 0:00:20]} 78. Qh2+ {[%clk 0:00:35]}  Kg8 {[%clk 0:00:21]} 79. Qb8+ {[%clk 0:00:35]}  Qe8 {[%clk 0:00:22]} 80. Qg3 {[%clk 0:00:34]}  Qe1+ {[%clk 0:00:22]} 81. Kh2 {[%clk 0:00:33]}  Qh1# {[%clk 0:00:23]} 0-1


[Site "https://www.chess.com"]

[Event "Titled Tuesday Blitz August 22 Late 2023"]
[White "Veiga, Jose Francisco R P Neves"]
[Black "Cruz, William Ferreira Da"]
[WhiteFideId "1930087"]
[BlackFideId "2118050"]
[WhiteElo "2586"]
[BlackElo "2306"]
[Result "1-0"]
[Round "3"]
[TimeControl "180+1"]
[Date "2023.08.22"]
[WhiteClock "0:02:30"]
[BlackClock "0:00:41"]
[Board "175"]

1. d4 {[%clk 0:03:00]}  Nf6 {[%clk 0:02:59]} 2. Nf3 {[%clk 0:03:01]}  g6 {[%clk 0:02:59]} 3. Bg5 {[%clk 0:03:01]}  Bg7 {[%clk 0:02:58]} 4. Nbd2 {[%clk 0:03:02]}  d5 {[%clk 0:02:56]} 5. e3 {[%clk 0:03:02]}  h6 {[%clk 0:02:53]} 6. Bh4 {[%clk 0:03:00]}  O-O {[%clk 0:02:48]} 7. h3 {[%clk 0:02:59]}  b6 {[%clk 0:02:46]} 8. Be2 {[%clk 0:02:57]}  c5 {[%clk 0:02:46]} 9. c3 {[%clk 0:02:57]}  Ba6 {[%clk 0:02:45]} 10. O-O {[%clk 0:02:56]}  Bxe2 {[%clk 0:02:43]} 11. Qxe2 {[%clk 0:02:57]}  Nc6 {[%clk 0:02:42]} 12. dxc5 {[%clk 0:02:52]}  bxc5 {[%clk 0:02:41]} 13. e4 {[%clk 0:02:53]}  dxe4 {[%clk 0:02:26]} 14. Nxe4 {[%clk 0:02:52]}  Nxe4 {[%clk 0:02:25]} 15. Qxe4 {[%clk 0:02:53]}  Qb6 {[%clk 0:02:24]} 16. Rab1 {[%clk 0:02:47]}  e5 {[%clk 0:02:16]} 17. Rfd1 {[%clk 0:02:45]}  f5 {[%clk 0:02:05]} 18. Qc4+ {[%clk 0:02:42]}  Kh7 {[%clk 0:02:05]} 19. Rd6 {[%clk 0:02:40]}  g5 {[%clk 0:01:20]} 20. Bxg5 {[%clk 0:02:39]}  e4 {[%clk 0:01:11]} 21. Bxh6 {[%clk 0:02:39]}  exf3 {[%clk 0:01:05]} 22. Qh4 {[%clk 0:02:37]}  Qc7 {[%clk 0:00:48]} 23. Bxg7+ {[%clk 0:02:30]}  Kxg7 {[%clk 0:00:48]} 24. Qh6+ {[%clk 0:02:30]}  Kf7 {[%clk 0:00:48]} 25. Qg6+ {[%clk 0:02:29]}  Ke7 {[%clk 0:00:41]} 26. Re1+ {[%clk 0:02:30]} 1-0


[Site "https://www.chess.com"]

[Event "Titled Tuesday Blitz August 22 Late 2023"]
[White "Sreyas Payyappat"]
[Black "Vaglio Munoz, Jaime"]
[WhiteFideId "46674969"]
[BlackFideId "6500145"]
[WhiteElo "2513"]
[BlackElo "2294"]
[Result "1-0"]
[Round "3"]
[TimeControl "180+1"]
[Date "2023.08.22"]
[WhiteClock "0:02:07"]
[BlackClock "0:01:55"]
[Board "178"]

1. e4 {[%clk 0:03:00]}  e6 {[%clk 0:03:00]} 2. d4 {[%clk 0:02:58]}  d5 {[%clk 0:03:00]} 3. Nc3 {[%clk 0:02:59]}  dxe4 {[%clk 0:03:01]} 4. Nxe4 {[%clk 0:03:00]}  Nf6 {[%clk 0:03:01]} 5. Bg5 {[%clk 0:02:57]}  Be7 {[%clk 0:03:00]} 6. Bxf6 {[%clk 0:02:57]}  Bxf6 {[%clk 0:03:01]} 7. Nf3 {[%clk 0:02:58]}  b6 {[%clk 0:02:55]} 8. Bd3 {[%clk 0:02:56]}  Bb7 {[%clk 0:02:56]} 9. Qc1 {[%clk 0:02:54]}  Nd7 {[%clk 0:02:54]} 10. Qd2 {[%clk 0:02:53]}  c5 {[%clk 0:02:51]} 11. Nd6+ {[%clk 0:02:50]}  Ke7 {[%clk 0:02:48]} 12. Nxb7 {[%clk 0:02:48]}  Qc7 {[%clk 0:02:49]} 13. Be4 {[%clk 0:02:45]}  Rab8 {[%clk 0:02:46]} 14. dxc5 {[%clk 0:02:43]}  Rxb7 {[%clk 0:02:39]} 15. Qd6+ {[%clk 0:02:40]}  Kd8 {[%clk 0:02:34]} 16. Bxb7 {[%clk 0:02:37]}  Qxb7 {[%clk 0:02:34]} 17. c6 {[%clk 0:02:36]}  Qc7 {[%clk 0:02:33]} 18. Qxd7+ {[%clk 0:02:35]}  Qxd7 {[%clk 0:02:31]} 19. cxd7 {[%clk 0:02:36]}  Kxd7 {[%clk 0:02:32]} 20. O-O-O+ {[%clk 0:02:35]}  Ke7 {[%clk 0:02:31]} 21. Rhe1 {[%clk 0:02:33]}  g5 {[%clk 0:02:28]} 22. Ne5 {[%clk 0:02:31]}  Rc8 {[%clk 0:02:23]} 23. Rd7+ {[%clk 0:02:29]}  Ke8 {[%clk 0:02:23]} 24. Rxa7 {[%clk 0:02:28]}  Be7 {[%clk 0:02:21]} 25. g3 {[%clk 0:02:25]}  f6 {[%clk 0:02:17]} 26. Ng4 {[%clk 0:02:23]}  e5 {[%clk 0:02:08]} 27. Nxe5 {[%clk 0:02:22]}  Bb4 {[%clk 0:02:04]} 28. c3 {[%clk 0:02:20]}  Bd6 {[%clk 0:01:57]} 29. Nc4+ {[%clk 0:02:13]}  Be7 {[%clk 0:01:56]} 30. Nd6+ {[%clk 0:02:07]}  Kf8 {[%clk 0:01:55]} 1-0


[Site "https://www.chess.com"]

[Event "Titled Tuesday Blitz August 22 Late 2023"]
[White "Miszler, Levente"]
[Black "Cooper, Aaron"]
[WhiteFideId "763276"]
[BlackFideId "2634945"]
[WhiteElo "2495"]
[BlackElo "2277"]
[Result "1-0"]
[Round "3"]
[TimeControl "180+1"]
[Date "2023.08.22"]
[WhiteClock "0:01:52"]
[BlackClock "0:00:48"]
[Board "181"]

1. e4 {[%clk 0:02:55]}  d5 {[%clk 0:02:59]} 2. exd5 {[%clk 0:02:55]}  Qxd5 {[%clk 0:03:00]} 3. d4 {[%clk 0:02:53]}  e5 {[%clk 0:03:00]} 4. Nc3 {[%clk 0:02:51]}  Qxd4 {[%clk 0:02:55]} 5. Qxd4 {[%clk 0:02:50]}  exd4 {[%clk 0:02:56]} 6. Nb5 {[%clk 0:02:50]}  Kd8 {[%clk 0:02:40]} 7. Bf4 {[%clk 0:02:37]}  Na6 {[%clk 0:02:40]} 8. O-O-O {[%clk 0:02:37]}  c5 {[%clk 0:02:32]} 9. c3 {[%clk 0:02:37]}  Bd7 {[%clk 0:02:26]} 10. cxd4 {[%clk 0:02:36]}  cxd4 {[%clk 0:02:25]} 11. Nf3 {[%clk 0:02:29]}  Rc8+ {[%clk 0:02:22]} 12. Kb1 {[%clk 0:02:27]}  Nf6 {[%clk 0:02:08]} 13. Nfxd4 {[%clk 0:02:22]}  Nd5 {[%clk 0:01:52]} 14. Bd6 {[%clk 0:02:12]}  Bxd6 {[%clk 0:01:48]} 15. Nxd6 {[%clk 0:02:12]}  Kc7 {[%clk 0:01:37]} 16. Nxc8 {[%clk 0:02:12]}  Kxc8 {[%clk 0:01:38]} 17. Nb5 {[%clk 0:02:06]}  Bxb5 {[%clk 0:01:29]} 18. Bxb5 {[%clk 0:02:06]}  Nac7 {[%clk 0:01:30]} 19. Bc4 {[%clk 0:02:05]}  Nf4 {[%clk 0:01:23]} 20. Bxf7 {[%clk 0:02:03]}  Rf8 {[%clk 0:01:23]} 21. Bb3 {[%clk 0:02:01]}  Nxg2 {[%clk 0:01:23]} 22. Rhg1 {[%clk 0:01:58]}  Rxf2 {[%clk 0:01:22]} 23. Rdf1 {[%clk 0:01:57]}  Rxf1+ {[%clk 0:01:22]} 24. Rxf1 {[%clk 0:01:57]}  h5 {[%clk 0:01:09]} 25. Rf8+ {[%clk 0:01:53]}  Kd7 {[%clk 0:01:09]} 26. Rf7+ {[%clk 0:01:54]}  Kd6 {[%clk 0:01:09]} 27. Rxg7 {[%clk 0:01:55]}  Nf4 {[%clk 0:01:08]} 28. Rh7 {[%clk 0:01:53]}  b6 {[%clk 0:00:48]} 29. Bd1 {[%clk 0:01:52]} 1-0


[Site "https://www.chess.com"]

[Event "Titled Tuesday Blitz August 22 Late 2023"]
[White "Cardozo Munar, Carlos Eduardo"]
[Black "Kovalevsky, Stanislav"]
[WhiteFideId "4409477"]
[BlackFideId "13508598"]
[WhiteElo "2275"]
[BlackElo "2495"]
[Result "1-0"]
[Round "3"]
[TimeControl "180+1"]
[Date "2023.08.22"]
[WhiteClock "0:01:47"]
[BlackClock "0:00:20"]
[Board "182"]

1. d4 {[%clk 0:03:00]}  d5 {[%clk 0:03:00]} 2. c3 {[%clk 0:02:49]}  Bf5 {[%clk 0:02:58]} 3. Bf4 {[%clk 0:02:40]}  Nf6 {[%clk 0:02:54]} 4. Nf3 {[%clk 0:02:40]}  e6 {[%clk 0:02:53]} 5. Nbd2 {[%clk 0:02:41]}  c5 {[%clk 0:02:53]} 6. e3 {[%clk 0:02:42]}  Nc6 {[%clk 0:02:53]} 7. Bb5 {[%clk 0:02:42]}  Qb6 {[%clk 0:02:52]} 8. Qa4 {[%clk 0:02:41]}  Be7 {[%clk 0:02:44]} 9. Ne5 {[%clk 0:02:41]}  O-O {[%clk 0:02:44]} 10. Bxc6 {[%clk 0:02:24]}  Qxb2 {[%clk 0:02:42]} 11. O-O {[%clk 0:02:17]}  Qxd2 {[%clk 0:02:34]} 12. Bxb7 {[%clk 0:02:17]}  Rab8 {[%clk 0:02:23]} 13. Qxa7 {[%clk 0:02:16]}  Bd6 {[%clk 0:02:11]} 14. dxc5 {[%clk 0:02:16]}  Bxe5 {[%clk 0:02:06]} 15. Bxe5 {[%clk 0:02:16]}  Rxb7 {[%clk 0:01:56]} 16. Qxb7 {[%clk 0:02:16]}  Ng4 {[%clk 0:01:56]} 17. Bd6 {[%clk 0:02:13]}  Be4 {[%clk 0:01:36]} 18. c6 {[%clk 0:02:08]}  Nxe3 {[%clk 0:01:18]} 19. c7 {[%clk 0:02:02]}  Qxc3 {[%clk 0:00:47]} 20. Bxf8 {[%clk 0:01:57]}  Nxg2 {[%clk 0:00:20]} 21. c8=Q {[%clk 0:01:51]}  Nf4 {[%clk 0:00:20]} 22. Bc5# {[%clk 0:01:47]} 1-0


[Site "https://www.chess.com"]

[Event "Titled Tuesday Blitz August 22 Late 2023"]
[White "Rodriguez Santiago, Jaime"]
[Black "Bilan, Danila"]
[WhiteFideId "3100898"]
[BlackFideId "24161918"]
[WhiteElo "2268"]
[BlackElo "2488"]
[Result "1/2-1/2"]
[Round "3"]
[TimeControl "180+1"]
[Date "2023.08.22"]
[WhiteClock "0:00:14"]
[BlackClock "0:00:05"]
[Board "184"]

1. c4 {[%clk 0:03:00]}  c6 {[%clk 0:02:54]} 2. d4 {[%clk 0:03:00]}  d5 {[%clk 0:02:55]} 3. cxd5 {[%clk 0:02:59]}  cxd5 {[%clk 0:02:56]} 4. Bf4 {[%clk 0:02:59]}  Nc6 {[%clk 0:02:56]} 5. e3 {[%clk 0:02:59]}  Nf6 {[%clk 0:02:56]} 6. Nc3 {[%clk 0:02:59]}  Bf5 {[%clk 0:02:52]} 7. Qb3 {[%clk 0:02:57]}  Na5 {[%clk 0:02:50]} 8. Qa4+ {[%clk 0:02:56]}  Bd7 {[%clk 0:02:51]} 9. Qc2 {[%clk 0:02:57]}  Rc8 {[%clk 0:02:50]} 10. Bd3 {[%clk 0:02:57]}  e6 {[%clk 0:02:46]} 11. Nf3 {[%clk 0:02:53]}  Nc4 {[%clk 0:02:43]} 12. O-O {[%clk 0:02:44]}  Bb4 {[%clk 0:02:35]} 13. Rac1 {[%clk 0:02:37]}  O-O {[%clk 0:02:34]} 14. Qe2 {[%clk 0:02:31]}  Qa5 {[%clk 0:02:20]} 15. Bxc4 {[%clk 0:02:03]}  Rxc4 {[%clk 0:02:18]} 16. Ne5 {[%clk 0:01:38]}  Rcc8 {[%clk 0:02:15]} 17. Bg5 {[%clk 0:01:27]}  Bxc3 {[%clk 0:02:05]} 18. Nxd7 {[%clk 0:01:24]}  Nxd7 {[%clk 0:02:00]} 19. bxc3 {[%clk 0:01:23]}  Rxc3 {[%clk 0:01:56]} 20. Rxc3 {[%clk 0:01:08]}  Qxc3 {[%clk 0:01:57]} 21. Qb5 {[%clk 0:01:06]}  Nb6 {[%clk 0:01:45]} 22. h3 {[%clk 0:01:00]}  Qc4 {[%clk 0:01:38]} 23. Qb2 {[%clk 0:00:58]}  Rc8 {[%clk 0:01:37]} 24. Be7 {[%clk 0:00:57]}  h6 {[%clk 0:01:31]} 25. Rb1 {[%clk 0:00:48]}  Qc2 {[%clk 0:01:23]} 26. Bc5 {[%clk 0:00:38]}  Qxb2 {[%clk 0:00:59]} 27. Rxb2 {[%clk 0:00:39]}  Rc6 {[%clk 0:00:57]} 28. Rb4 {[%clk 0:00:36]}  f5 {[%clk 0:00:45]} 29. a4 {[%clk 0:00:36]}  Nd7 {[%clk 0:00:27]} 30. Rxb7 {[%clk 0:00:35]}  Nxc5 {[%clk 0:00:27]} 31. dxc5 {[%clk 0:00:36]}  Rxc5 {[%clk 0:00:19]} 32. Rxa7 {[%clk 0:00:35]}  Rc1+ {[%clk 0:00:19]} 33. Kh2 {[%clk 0:00:35]}  Rc2 {[%clk 0:00:20]} 34. Kg3 {[%clk 0:00:36]}  Rc4 {[%clk 0:00:17]} 35. a5 {[%clk 0:00:35]}  Ra4 {[%clk 0:00:17]} 36. a6 {[%clk 0:00:35]}  Kh7 {[%clk 0:00:16]} 37. h4 {[%clk 0:00:34]}  Kg6 {[%clk 0:00:16]} 38. Kh3 {[%clk 0:00:31]}  Kf6 {[%clk 0:00:15]} 39. g3 {[%clk 0:00:29]}  g5 {[%clk 0:00:15]} 40. h5 {[%clk 0:00:28]}  g4+ {[%clk 0:00:14]} 41. Kg2 {[%clk 0:00:28]}  Kg5 {[%clk 0:00:13]} 42. Rg7+ {[%clk 0:00:28]}  Kxh5 {[%clk 0:00:13]} 43. a7 {[%clk 0:00:28]}  e5 {[%clk 0:00:10]} 44. Kf1 {[%clk 0:00:27]}  Ra2 {[%clk 0:00:09]} 45. Rd7 {[%clk 0:00:23]}  d4 {[%clk 0:00:09]} 46. exd4 {[%clk 0:00:22]}  exd4 {[%clk 0:00:10]} 47. Rxd4 {[%clk 0:00:18]}  Rxa7 {[%clk 0:00:09]} 48. Kg2 {[%clk 0:00:18]}  Kg5 {[%clk 0:00:09]} 49. Rd8 {[%clk 0:00:18]}  Rg7 {[%clk 0:00:10]} 50. Rd5 {[%clk 0:00:17]}  h5 {[%clk 0:00:10]} 51. Rc5 {[%clk 0:00:17]}  Rf7 {[%clk 0:00:09]} 52. Rb5 {[%clk 0:00:17]}  h4 {[%clk 0:00:09]} 53. gxh4+ {[%clk 0:00:16]}  Kxh4 {[%clk 0:00:10]} 54. Rb8 {[%clk 0:00:15]}  Rd7 {[%clk 0:00:08]} 55. Rh8+ {[%clk 0:00:15]}  Kg5 {[%clk 0:00:08]} 56. Rg8+ {[%clk 0:00:15]}  Kf4 {[%clk 0:00:08]} 57. Rb8 {[%clk 0:00:15]}  Rd4 {[%clk 0:00:08]} 58. Rb3 {[%clk 0:00:15]}  Kg5 {[%clk 0:00:06]} 59. Rb8 {[%clk 0:00:14]}  f4 {[%clk 0:00:04]} 60. Rg8+ {[%clk 0:00:13]}  Kf5 {[%clk 0:00:05]} 61. Rf8+ {[%clk 0:00:13]}  Ke4 {[%clk 0:00:05]} 62. Re8+ {[%clk 0:00:14]}  Kf5 {[%clk 0:00:04]} 63. Rf8+ {[%clk 0:00:13]}  Ke5 {[%clk 0:00:05]} 64. Re8+ {[%clk 0:00:14]}  Kf6 {[%clk 0:00:05]} 65. Rf8+ {[%clk 0:00:14]}  Kg5 {[%clk 0:00:06]} 66. Rg8+ {[%clk 0:00:14]}  Kf5 {[%clk 0:00:05]} 67. Rf8+ {[%clk 0:00:14]} 1/2-1/2


[Site "https://www.chess.com"]

[Event "Titled Tuesday Blitz August 22 Late 2023"]
[White "KrokerGuy"]
[Black "Fernandez Hernandez, Gerardo"]
[BlackFideId "2207400"]
[WhiteElo "2463"]
[BlackElo "2259"]
[Result "0-1"]
[Round "3"]
[TimeControl "180+1"]
[Date "2023.08.22"]
[WhiteClock "0:00:01"]
[BlackClock "0:00:04"]
[Board "186"]

1. e4 {[%clk 0:03:00]}  e6 {[%clk 0:02:58]} 2. d4 {[%clk 0:03:00]}  d5 {[%clk 0:02:59]} 3. Nc3 {[%clk 0:03:01]}  Nc6 {[%clk 0:02:58]} 4. Nf3 {[%clk 0:02:58]}  Nf6 {[%clk 0:02:57]} 5. exd5 {[%clk 0:02:55]}  exd5 {[%clk 0:02:56]} 6. Bg5 {[%clk 0:02:52]}  Bb4 {[%clk 0:02:46]} 7. Bb5 {[%clk 0:02:39]}  O-O {[%clk 0:02:41]} 8. O-O {[%clk 0:02:36]}  Bxc3 {[%clk 0:02:31]} 9. bxc3 {[%clk 0:02:35]}  h6 {[%clk 0:02:32]} 10. Bh4 {[%clk 0:02:32]}  g5 {[%clk 0:02:27]} 11. Bg3 {[%clk 0:02:24]}  Ne4 {[%clk 0:02:26]} 12. c4 {[%clk 0:02:25]}  Nxg3 {[%clk 0:02:16]} 13. hxg3 {[%clk 0:02:21]}  Bg4 {[%clk 0:02:16]} 14. Bxc6 {[%clk 0:02:03]}  bxc6 {[%clk 0:02:15]} 15. Qd3 {[%clk 0:02:04]}  Bxf3 {[%clk 0:02:08]} 16. Qxf3 {[%clk 0:02:05]}  dxc4 {[%clk 0:02:04]} 17. Qxc6 {[%clk 0:01:58]}  Qxd4 {[%clk 0:01:42]} 18. Rad1 {[%clk 0:01:46]}  Qb6 {[%clk 0:01:29]} 19. Qxc4 {[%clk 0:01:36]}  Rad8 {[%clk 0:01:24]} 20. Rfe1 {[%clk 0:01:17]}  Rd6 {[%clk 0:00:34]} 21. Rxd6 {[%clk 0:01:03]}  Qxd6 {[%clk 0:00:35]} 22. Re3 {[%clk 0:00:53]}  Qd1+ {[%clk 0:00:29]} 23. Kh2 {[%clk 0:00:52]}  Qh5+ {[%clk 0:00:29]} 24. Kg1 {[%clk 0:00:52]}  Qd1+ {[%clk 0:00:29]} 25. Qf1 {[%clk 0:00:46]}  Qxc2 {[%clk 0:00:29]} 26. Ra3 {[%clk 0:00:46]}  Rd8 {[%clk 0:00:24]} 27. Qa6 {[%clk 0:00:13]}  Qc1+ {[%clk 0:00:16]} 28. Kh2 {[%clk 0:00:13]}  Rd1 {[%clk 0:00:17]} 29. Kh3 {[%clk 0:00:07]}  h5 {[%clk 0:00:15]} 30. Qc8+ {[%clk 0:00:03]}  Kg7 {[%clk 0:00:14]} 31. g4 {[%clk 0:00:02]}  h4 {[%clk 0:00:12]} 32. g3 {[%clk 0:00:01]}  Rh1+ {[%clk 0:00:11]} 33. Kg2 {[%clk 0:00:02]}  Qf1+ {[%clk 0:00:10]} 34. Kf3 {[%clk 0:00:02]}  Qd1+ {[%clk 0:00:09]} 35. Ke4 {[%clk 0:00:02]}  Qe2+ {[%clk 0:00:08]} 36. Re3 {[%clk 0:00:02]}  Qc4+ {[%clk 0:00:08]} 37. Kf5 {[%clk 0:00:03]}  Qd5+ {[%clk 0:00:07]} 38. Re5 {[%clk 0:00:01]}  Qf3+ {[%clk 0:00:08]} 39. Kxg5 {[%clk 0:00:01]}  f6+ {[%clk 0:00:07]} 40. Kh5 {[%clk 0:00:01]}  hxg3# {[%clk 0:00:04]} 0-1


[Site "https://www.chess.com"]

[Event "Titled Tuesday Blitz August 22 Late 2023"]
[White "Zenin, Dmitry"]
[Black "Bach, Matthias"]
[WhiteFideId "4127897"]
[BlackFideId "4603168"]
[WhiteElo "2435"]
[BlackElo "2251"]
[Result "1-0"]
[Round "3"]
[TimeControl "180+1"]
[Date "2023.08.22"]
[WhiteClock "0:01:13"]
[BlackClock "0:00:16"]
[Board "187"]

1. d4 {[%clk 0:03:00]}  Nf6 {[%clk 0:02:58]} 2. c4 {[%clk 0:03:00]}  c5 {[%clk 0:02:59]} 3. d5 {[%clk 0:03:00]}  e6 {[%clk 0:02:59]} 4. Nc3 {[%clk 0:03:00]}  exd5 {[%clk 0:03:00]} 5. cxd5 {[%clk 0:03:00]}  d6 {[%clk 0:03:00]} 6. e4 {[%clk 0:03:00]}  g6 {[%clk 0:03:01]} 7. Bd3 {[%clk 0:03:00]}  Bg7 {[%clk 0:03:01]} 8. h3 {[%clk 0:03:00]}  O-O {[%clk 0:03:00]} 9. Nf3 {[%clk 0:03:01]}  b5 {[%clk 0:03:00]} 10. Nxb5 {[%clk 0:03:00]}  Re8 {[%clk 0:03:00]} 11. Nd2 {[%clk 0:03:00]}  Nxd5 {[%clk 0:02:52]} 12. Nc4 {[%clk 0:02:59]}  Ba6 {[%clk 0:02:30]} 13. a4 {[%clk 0:02:57]}  Bxb5 {[%clk 0:02:26]} 14. axb5 {[%clk 0:02:56]}  Nb6 {[%clk 0:02:27]} 15. O-O {[%clk 0:02:38]}  Nxc4 {[%clk 0:02:03]} 16. Bxc4 {[%clk 0:02:37]}  Nd7 {[%clk 0:02:03]} 17. Qxd6 {[%clk 0:02:30]}  Nb6 {[%clk 0:02:00]} 18. Qxd8 {[%clk 0:02:24]}  Rexd8 {[%clk 0:02:00]} 19. Be2 {[%clk 0:02:12]}  Rd4 {[%clk 0:01:51]} 20. Be3 {[%clk 0:02:09]}  Rb4 {[%clk 0:01:21]} 21. Bxc5 {[%clk 0:02:03]}  Rxb2 {[%clk 0:01:19]} 22. Bxb6 {[%clk 0:01:28]}  Rxe2 {[%clk 0:01:17]} 23. Rxa7 {[%clk 0:01:27]}  Rb8 {[%clk 0:01:11]} 24. Be3 {[%clk 0:01:26]}  Bf8 {[%clk 0:01:03]} 25. Rb1 {[%clk 0:01:20]}  Bd6 {[%clk 0:00:16]} 26. b6 {[%clk 0:01:13]} 1-0


[Site "https://www.chess.com"]